fUSD/lending_fUSD_20241109
["ID","MTS","AMOUNT","RATE_DAILY","PERIOD"]
[341726966,1731151507900,10000.0,0.00016,2]
[341726967,1731151507926,10000.0,0.00016,2]
[341726968,1731151507960,10000.0,0.00016,2]
[341726969,1731151507997,10000.0,0.00016,2]
[341726970,1731151508025,10000.0,0.00016,2]
[341726971,1731151508049,10000.0,0.00016,2]
[341726972,1731151508076,10000.0,0.00016,2]
[341726973,1731151508101,10000.0,0.00016,2]
[341726974,1731151508125,10000.0,0.00016,2]
[341726975,1731151508150,10000.0,0.00016,2]
[341726976,1731151508175,10000.0,0.00016,2]
[341726977,1731151508199,10000.0,0.00016,2]
[341726978,1731151508224,10000.0,0.00016,2]
[341726979,1731151508248,10000.0,0.00016,2]
[341726980,1731151508274,10000.0,0.00016,2]
[341726981,1731151508298,10000.0,0.00016,2]
[341726982,1731151508322,10000.0,0.00016,2]
[341726983,1731151508346,10000.0,0.00016,2]
[341726984,1731151508371,10000.0,0.00016,2]
[341726985,1731151508394,10000.0,0.00016,2]
[341726986,1731151508418,10000.0,0.00016,2]
[341726987,1731151508440,10000.0,0.00016,2]
[341726988,1731151508821,275137.94424446,0.00016,2]
[341726989,1731151510417,578.40225,0.0002,2]
[341726990,1731151519371,283.35,0.00015342,2]
[341726991,1731151536148,18040.68,9e-05,2]
[341726992,1731151541222,-283.35,0.00021745,2]
[341726993,1731151541247,-1079.81,0.00024853,2]
[341726994,1731151541270,-134.31396833,0.00025669,2]
[341726995,1731151554575,603.68543862,0.0001892,2]
[341726996,1731151569630,2324.92826186,0.000199,3]
[341726997,1731151606086,-694.0,0.000212,2]
[341726998,1731151606110,-60.65603167,0.00025669,2]
[341726999,1731151606133,-22.39040812,0.00026389,2]
[341727000,1731151636094,-481.82471895,0.00026389,2]
[341727001,1731151639100,-171.54635221,0.00026389,2]
[341727002,1731151640119,-2865.66852072,0.00026389,2]
[341727003,1731151640144,-250.0,0.00026495,2]
[341727004,1731151640166,-4575.10174622,0.0002661,2]
[341727005,1731151640189,-194.97,0.00026683,2]
[341727006,1731151640210,-555.13,0.00026701,2]
[341727007,1731151640236,-153.53,0.00026762,30]
[341727008,1731151640258,-1271.8839128,0.00026806,2]
[341727009,1731151683540,70633.9491414,0.00015,2]
[341727022,1731151801341,300.0,0.00019725,2]
[341727031,1731151832372,-166.96,0.00026605,2]
[341727032,1731151832384,-482.36687009,0.00026636,2]
[341727033,1731151832843,-524.28312991,0.00026636,2]
[341727034,1731151832853,-160.57,0.00026715,2]
[341727035,1731151832863,-411.40066788,0.000268,5]
[341727036,1731151832876,-284.80532351,0.000268,5]
[341727037,1731151832888,-6393.79400861,0.000268,5]
[341727038,1731151832897,-2357.9660872,0.00026806,2]
[341727039,1731151832907,-1351.42644896,0.00026813,2]
[341727040,1731151832945,-722.16573347,0.00026813,2]
[341727045,1731151839559,-259.48678489,0.00026813,2]
[341727046,1731151839704,-166.38599658,0.00026813,2]
[341727052,1731151840577,-19.06070581,0.00026813,2]
[341727053,1731151840698,-1022.90433029,0.00026813,2]
[341727054,1731151840707,-160.57,0.00026982,2]
[341727055,1731151840717,-150.99,0.00026982,2]
[341727056,1731151840726,-999.99,0.00026982,2]
[341727057,1731151840735,-344.82,0.00026989,2]
[341727058,1731151840745,-499.99,0.00026989,2]
[341727059,1731151840755,-1220.16,0.00026989,2]
[341727060,1731151840764,-396.76174319,0.00026989,10]
[341727064,1731151843413,-349.29229287,0.00026989,10]
[341727065,1731151843619,-86.33849325,0.00026989,10]
[341727066,1731151843900,-6946.40747069,0.00026989,10]
[341727067,1731151843915,-361.1025171,0.00027028,2]
[341727068,1731151843930,-150.0,0.00027029,2]
[341727069,1731151843945,-809.8,0.00027049,2]
[341727070,1731151843960,-262.87,0.00027049,2]
[341727071,1731151843974,-563.54198057,0.00027083,2]
[341727072,1731151844041,-641.05801943,0.00027083,2]
[341727073,1731151844056,-1321.63,0.00027104,2]
[341727074,1731151844071,-1079.81,0.00027117,2]
[341727075,1731151844090,-429.05,0.00027145,120]
[341727076,1731151844106,-3541.43,0.00027237,2]
[341727077,1731151844122,-166.65,0.00027385,2]
[341727078,1731151844137,-200.0,0.00027397,7]
[341727079,1731151844152,-200.0,0.000276,10]
[341727080,1731151844167,-3541.43,0.00027661,2]
[341727081,1731151844182,-194.97,0.00027696,2]
[341727082,1731151844199,-500.0,0.000277,10]
[341727083,1731151844215,-498.0,0.0002772,2]
[341727084,1731151844232,-700.0,0.000278,10]
[341727085,1731151844248,-1345.691,0.00027879,2]
[341727086,1731151844264,-13538.8325,0.0002788,2]
[341727087,1731151844279,-247.57811423,0.0002788,2]
[341727088,1731151844295,-1000.0,0.0002788,2]
[341727089,1731151844311,-847.6736,0.0002788,2]
[341727090,1731151844328,-1793.53513499,0.0002788,2]
[341727091,1731151844344,-312.8498616,0.0002789,2]
[341727092,1731151844359,-1000.0,0.000279,10]
[341727093,1731151844373,-175.52199006,0.000279,2]
[341727094,1731151844388,-150.0,0.000279,2]
[341727095,1731151844404,-483.89,0.00027969,10]
[341727096,1731151844418,-500.0,0.00027973,5]
[341727097,1731151844432,-501.2787905,0.00027973,5]
[341727098,1731151844447,-72530.06903442,0.00027979,2]
[341727099,1731151844461,-2000.0,0.00027979,2]
[341727100,1731151844478,-2000.0,0.00027979,2]
[341727101,1731151844493,-2000.0,0.00027979,2]
[341727102,1731151844507,-2000.0,0.00027979,2]
[341727103,1731151844522,-521.4825452,0.00027979,2]
[341727104,1731151844539,-500.0,0.00027979,2]
[341727105,1731151844554,-500.0,0.00027979,2]
[341727106,1731151844569,-500.0,0.00027979,2]
[341727107,1731151844584,-500.0,0.00027979,2]
[341727108,1731151844599,-500.0,0.00027979,2]
[341727109,1731151844615,-500.0,0.00027979,2]
[341727110,1731151844630,-500.0,0.00027979,2]
[341727111,1731151844650,-500.0,0.00027979,2]
[341727112,1731151844666,-500.0,0.00027979,2]
[341727113,1731151844683,-500.0,0.00027979,2]
[341727114,1731151844694,-500.0,0.00027979,2]
[341727115,1731151844704,-216.32364535,0.00027979,2]
[341727116,1731151844715,-37864.4698,0.0002798,2]
[341727117,1731151844725,-1000.0,0.0002798,2]
[341727118,1731151845025,-12190.545,0.0002798,2]
[341727119,1731151845059,-10138.657,0.0002798,2]
[341727120,1731151845072,-150091.94980464,0.0002798,2]
[341727122,1731151846550,-53.53608002,0.00027973,2]
[341727123,1731151846705,171.0,0.00025,2]
[341727124,1731151846764,-446.46391998,0.00027973,2]
[341727125,1731151846774,-7250.03472889,0.0002798,2]
[341727126,1731151846884,-787.58551794,0.0002798,2]
[341727127,1731151847298,-86870.42994853,0.0002798,2]
[341727128,1731151847307,-458.96942128,0.0002799,2]
[341727129,1731151847316,-439.29734241,0.00027999,120]
[341727130,1731151847325,-400.0,0.00027999,10]
[341727131,1731151847334,-174.99401174,0.00027999,120]
[341727132,1731151847343,-152.0,0.00028,4]
[341727133,1731151847352,-1200.0,0.00028,4]
[341727134,1731151847362,-722286.0,0.00028,2]
[341727135,1731151847371,-151.0,0.00028,7]
[341727136,1731151847382,-151.0,0.00028,7]
[341727137,1731151847393,-151.0,0.00028,7]
[341727138,1731151847402,-152.119494,0.00028,7]
[341727139,1731151847411,-151.0,0.00028,7]
[341727140,1731151847421,-151.0,0.00028,7]
[341727141,1731151847432,-224.178471,0.00028,7]
[341727142,1731151847441,-152.152021,0.00028,7]
[341727143,1731151847450,-224.178471,0.00028,7]
[341727144,1731151847460,-151.0,0.00028,7]
[341727145,1731151847470,-151.0,0.00028,7]
[341727146,1731151847479,-403.264318,0.00028,7]
[341727148,1731151847489,-403.264318,0.00028,7]
[341727149,1731151847499,-151.0,0.00028,7]
[341727150,1731151847510,-174.572849,0.00028,7]
[341727151,1731151847520,-151.0,0.00028,7]
[341727152,1731151847530,-174.572849,0.00028,7]
[341727153,1731151847539,-151.0,0.00028,7]
[341727154,1731151847548,-151.0,0.00028,7]
[341727155,1731151847558,-151.0,0.00028,7]
[341727156,1731151847567,-151.0,0.00028,7]
[341727157,1731151847577,-151.0,0.00028,7]
[341727158,1731151847586,-153.157286,0.00028,7]
[341727159,1731151847595,-235.995884,0.00028,7]
[341727160,1731151847604,-235.995884,0.00028,7]
[341727161,1731151847613,-151.0,0.00028,7]
[341727162,1731151847624,-151.0,0.00028,7]
[341727163,1731151847633,-151.0,0.00028,7]
[341727164,1731151847644,-151.0,0.00028,7]
[341727165,1731151847653,-151.0,0.00028,7]
[341727166,1731151847663,-151.0,0.00028,7]
[341727167,1731151847673,-151.0,0.00028,7]
[341727168,1731151847682,-151.0,0.00028,7]
[341727169,1731151847693,-151.0,0.00028,7]
[341727170,1731151847703,-151.0,0.00028,7]
[341727171,1731151847714,-151.0,0.00028,7]
[341727172,1731151847723,-159.09512,0.00028,7]
[341727173,1731151847733,-151.0,0.00028,7]
[341727174,1731151847742,-243.711267,0.00028,7]
[341727175,1731151847751,-151.0,0.00028,7]
[341727176,1731151847761,-151.0,0.00028,7]
[341727177,1731151847770,-151.0,0.00028,7]
[341727178,1731151847780,-1000.0,0.00028,2]
[341727179,1731151847791,-151.0,0.00028,7]
[341727180,1731151847801,-274.738219,0.00028,7]
[341727181,1731151847810,-274.738219,0.00028,7]
[341727182,1731151847820,-160.0,0.00028,2]
[341727183,1731151847831,-1253.0,0.00028063,2]
[341727184,1731151847840,-631.0,0.00028063,2]
[341727185,1731151847849,-265.723,0.00028063,2]
[341727186,1731151847859,-13623.0,0.00028063,2]
[341727187,1731151847869,-150.0,0.00028077,2]
[341727188,1731151847879,-403.88468119,0.00028079,10]
[341727189,1731151847889,-208098.14407166,0.0002808,4]
[341727190,1731151847898,-4271.71585315,0.0002808,4]
[341727191,1731151847907,-357.7661,0.0002808,2]
[341727192,1731151847919,-500.0,0.0002808,2]
[341727193,1731151847929,-4314.0623,0.0002808,2]
[341727194,1731151847939,-117609.143,0.0002808,2]
[341727195,1731151847948,-1096.4477,0.0002808,2]
[341727196,1731151847958,-151.0,0.0002808,7]
[341727197,1731151847967,-151.0,0.0002808,7]
[341727198,1731151847977,-1459.828232,0.0002808,7]
[341727199,1731151847986,-1459.828232,0.0002808,7]
[341727200,1731151847996,-151.0,0.0002808,7]
[341727201,1731151848008,-151.0,0.0002808,7]
[341727202,1731151848019,-151.0,0.0002808,7]
[341727203,1731151848028,-151.0,0.0002808,7]
[341727204,1731151848038,-151.0,0.0002808,7]
[341727205,1731151848047,-154.084986,0.0002808,7]
[341727206,1731151848056,-151.0,0.0002808,7]
[341727207,1731151848065,-151.0,0.0002808,7]
[341727208,1731151848074,-152.502219,0.0002808,7]
[341727209,1731151848085,-236.948001,0.0002808,7]
[341727210,1731151848094,-236.948001,0.0002808,7]
[341727211,1731151848103,-151.864786,0.0002808,7]
[341727212,1731151848113,-151.0,0.0002808,2]
[341727213,1731151848122,-151.0,0.0002808,7]
[341727214,1731151848132,-151.0,0.0002808,7]
[341727215,1731151848142,-151.0,0.0002808,7]
[341727216,1731151848152,-151.0,0.0002808,7]
[341727217,1731151848161,-151.0,0.0002808,7]
[341727218,1731151848170,-224.178471,0.0002808,7]
[341727219,1731151848179,-224.178471,0.0002808,7]
[341727220,1731151848188,-151.0,0.0002808,7]
[341727221,1731151848197,-151.0,0.0002808,7]
[341727222,1731151848208,-403.264318,0.0002808,7]
[341727223,1731151848218,-403.264318,0.0002808,7]
[341727224,1731151848228,-151.0,0.0002808,7]
[341727225,1731151848238,-174.572849,0.0002808,7]
[341727226,1731151848248,-151.0,0.0002808,7]
[341727227,1731151848257,-174.572849,0.0002808,7]
[341727228,1731151848267,-151.0,0.0002808,7]
[341727229,1731151848276,-151.0,0.0002808,7]
[341727230,1731151848286,-290.510882,0.0002808,7]
[341727231,1731151848295,-151.0,0.0002808,7]
[341727232,1731151848304,-151.0,0.0002808,7]
[341727233,1731151848314,-235.995884,0.0002808,7]
[341727234,1731151848324,-235.995884,0.0002808,7]
[341727235,1731151848334,-151.0,0.0002808,7]
[341727236,1731151848344,-151.0,0.0002808,7]
[341727237,1731151848354,-151.0,0.0002808,7]
[341727238,1731151848364,-151.0,0.0002808,7]
[341727239,1731151848374,-151.0,0.0002808,7]
[341727240,1731151848384,-151.0,0.0002808,7]
[341727241,1731151848395,-151.0,0.0002808,7]
[341727242,1731151848405,-151.0,0.0002808,7]
[341727243,1731151848415,-151.0,0.0002808,7]
[341727244,1731151848425,-151.0,0.0002808,7]
[341727245,1731151848436,-151.0,0.0002808,7]
[341727246,1731151848446,-151.0,0.0002808,7]
[341727247,1731151848456,-155.334534,0.0002808,7]
[341727248,1731151848636,-159.693231,0.0002808,7]
[341727249,1731151848660,-151.0,0.0002808,7]
[341727250,1731151848670,-152.181912,0.0002808,7]
[341727251,1731151848680,-151.0,0.0002808,7]
[341727252,1731151848689,-151.0,0.0002808,7]
[341727253,1731151848698,-151.0,0.0002808,7]
[341727254,1731151848708,-151.0,0.0002808,7]
[341727255,1731151848718,-151.0,0.0002808,7]
[341727256,1731151848727,-274.738219,0.0002808,7]
[341727257,1731151848737,-1809.363913,0.0002808,7]
[341727258,1731151848746,-274.738219,0.0002808,7]
[341727259,1731151848755,-1809.363913,0.0002808,7]
[341727260,1731151848765,-151.0,0.0002808,7]
[341727261,1731151848775,-151.0,0.0002808,7]
[341727262,1731151848785,-1809.363913,0.0002808,7]
[341727263,1731151848795,-1809.363913,0.0002808,7]
[341727264,1731151848805,-151.0,0.0002808,7]
[341727265,1731151848814,-151.0,0.0002808,7]
[341727266,1731151848824,-186.761322,0.0002808,7]
[341727267,1731151848833,-186.761322,0.0002808,7]
[341727268,1731151848843,-206.164653,0.0002808,7]
[341727269,1731151848853,-186.761322,0.0002808,7]
[341727270,1731151848863,-186.761322,0.0002808,7]
[341727271,1731151848872,-154.279404,0.0002808,7]
[341727272,1731151848882,-219.217778,0.0002808,7]
[341727273,1731151848892,-219.217778,0.0002808,7]
[341727274,1731151848902,-219.217778,0.0002808,7]
[341727275,1731151848912,-219.217778,0.0002808,7]
[341727276,1731151848922,-151.0,0.0002808,7]
[341727277,1731151848932,-151.0,0.0002808,7]
[341727278,1731151848941,-151.0,0.0002808,7]
[341727279,1731151848951,-151.0,0.0002808,7]
[341727280,1731151848961,-151.0,0.0002808,7]
[341727281,1731151848970,-151.0,0.0002808,7]
[341727282,1731151848980,-151.0,0.0002808,7]
[341727283,1731151848990,-151.0,0.0002808,7]
[341727284,1731151849000,-3000.0,0.0002808,2]
[341727285,1731151849014,-3000.0,0.0002808,2]
[341727286,1731151849023,-2207.755744,0.0002808,2]
[341727287,1731151849033,-151.0,0.0002808,7]
[341727288,1731151849043,-151.0,0.0002808,7]
[341727289,1731151849052,-151.0,0.0002808,7]
[341727290,1731151849062,-151.0,0.0002808,7]
[341727291,1731151849072,-151.0,0.0002808,7]
[341727292,1731151849081,-151.0,0.0002808,7]
[341727293,1731151849093,-151.0,0.0002808,7]
[341727294,1731151849103,-258.382597,0.0002808,7]
[341727295,1731151849112,-151.0,0.0002808,7]
[341727296,1731151849122,-151.0,0.0002808,7]
[341727297,1731151849132,-151.0,0.0002808,7]
[341727298,1731151849142,-1746.43014,0.0002808,7]
[341727299,1731151849152,-1746.43014,0.0002808,7]
[341727300,1731151849162,-1746.43014,0.0002808,7]
[341727301,1731151849171,-1746.43014,0.0002808,7]
[341727302,1731151849182,-151.0,0.0002808,7]
[341727303,1731151849191,-812.204246,0.0002808,7]
[341727304,1731151849202,-151.0,0.0002808,7]
[341727305,1731151849213,-812.204246,0.0002808,7]
[341727306,1731151849223,-812.204246,0.0002808,7]
[341727307,1731151849233,-812.204246,0.0002808,7]
[341727308,1731151849242,-151.0,0.0002808,7]
[341727309,1731151849252,-161.92751,0.0002808,7]
[341727310,1731151849262,-151.0,0.0002808,7]
[341727311,1731151849272,-151.0,0.0002808,7]
[341727312,1731151849282,-151.0,0.0002808,7]
[341727313,1731151849292,-151.0,0.0002808,7]
[341727314,1731151849301,-151.0,0.0002808,7]
[341727315,1731151849310,-151.0,0.0002808,7]
[341727316,1731151849320,-151.0,0.0002808,7]
[341727317,1731151849330,-151.0,0.0002808,7]
[341727318,1731151849340,-151.0,0.0002808,7]
[341727319,1731151849350,-151.0,0.0002808,7]
[341727320,1731151849359,-151.0,0.0002808,7]
[341727321,1731151849369,-151.0,0.0002808,7]
[341727322,1731151849378,-151.0,0.0002808,7]
[341727323,1731151849388,-151.0,0.0002808,7]
[341727324,1731151849398,-151.0,0.0002808,7]
[341727325,1731151849408,-151.0,0.0002808,7]
[341727326,1731151849418,-596.313607,0.0002808,7]
[341727327,1731151849428,-596.313607,0.0002808,7]
[341727328,1731151849438,-3541.43,0.00028085,2]
[341727329,1731151849448,-1793.53513493,0.0002812,2]
[341727330,1731151849457,-283.35,0.00028147,2]
[341727331,1731151849467,-150.0,0.0002817,2]
[341727332,1731151849476,-200.0,0.0002818,2]
[341727333,1731151849486,-200.0,0.0002818,2]
[341727334,1731151849495,-247.57811416,0.00028188,2]
[341727335,1731151849505,-8624.076798,0.000282,2]
[341727336,1731151849515,-150.0,0.00028201,2]
[341727337,1731151849525,-150.0,0.00028207,2]
[341727338,1731151849535,-761.84,0.00028219,2]
[341727339,1731151849545,-676.87533788,0.00028239,2]
[341727340,1731151849556,-676.87533787,0.00028239,2]
[341727341,1731151849566,-150.0,0.00028248,2]
[341727342,1731151849576,-13288.4429287,0.00028271,2]
[341727343,1731151849586,-2894.5184208,0.00028271,2]
[341727344,1731151849595,-2901.9378849,0.00028271,2]
[341727345,1731151849605,-887.68801,0.00028271,2]
[341727346,1731151849616,-193.86955363,0.0002828,2]
[341727347,1731151849627,-180.19826567,0.0002828,5]
[341727348,1731151849637,-4767.05087928,0.0002828,2]
[341727349,1731151849648,-596.313607,0.0002828,7]
[341727350,1731151849658,-353.941,0.0002829,19]
[341727351,1731151849668,-178.75426398,0.0002829,19]
[341727352,1731151849678,-150.0,0.00028313,2]
[341727353,1731151849688,-150.0,0.00028332,2]
[341727354,1731151849698,-150.0,0.00028349,2]
[341727355,1731151849708,-305.85800046,0.00028357,2]
[341727356,1731151849718,-151.0,0.00028361,7]
[341727357,1731151849728,-151.0,0.00028361,7]
[341727358,1731151849738,-151.0,0.00028361,7]
[341727359,1731151849748,-151.0,0.00028361,7]
[341727360,1731151849758,-151.0,0.00028361,7]
[341727361,1731151849767,-224.178471,0.00028361,7]
[341727362,1731151849778,-224.178471,0.00028361,7]
[341727363,1731151849787,-151.0,0.00028361,7]
[341727364,1731151849797,-151.0,0.00028361,7]
[341727365,1731151849807,-403.264318,0.00028361,7]
[341727366,1731151849816,-403.264318,0.00028361,7]
[341727367,1731151849826,-165.974219,0.00028361,7]
[341727368,1731151849836,-174.572849,0.00028361,7]
[341727369,1731151849846,-151.0,0.00028361,7]
[341727370,1731151849856,-174.572849,0.00028361,7]
[341727371,1731151849866,-151.0,0.00028361,7]
[341727372,1731151849876,-151.0,0.00028361,7]
[341727373,1731151849886,-151.0,0.00028361,7]
[341727374,1731151849897,-151.435929,0.00028361,7]
[341727375,1731151849906,-235.995884,0.00028361,7]
[341727376,1731151849916,-235.995884,0.00028361,7]
[341727377,1731151849926,-262.664596,0.00028361,7]
[341727378,1731151849936,-151.0,0.00028361,7]
[341727379,1731151849946,-151.0,0.00028361,7]
[341727380,1731151849955,-151.0,0.00028361,7]
[341727381,1731151849966,-151.0,0.00028361,7]
[341727382,1731151849976,-151.0,0.00028361,7]
[341727383,1731151849985,-151.0,0.00028361,7]
[341727384,1731151849996,-151.0,0.00028361,7]
[341727385,1731151850006,-151.0,0.00028361,7]
[341727386,1731151850019,-151.0,0.00028361,7]
[341727387,1731151850029,-12066.2254457,0.00028361,2]
[341727388,1731151850038,-10844.0079627,0.00028361,2]
[341727389,1731151850047,-9621.7904797,0.00028361,2]
[341727390,1731151850058,-2628.2922694,0.00028361,2]
[341727391,1731151850069,-2362.0661181,0.00028361,2]
[341727392,1731151850081,-2095.8399667,0.00028361,2]
[341727393,1731151850091,-151.0,0.00028361,7]
[341727394,1731151850101,-2635.0293211,0.00028361,2]
[341727395,1731151850112,-2368.1207573,0.00028361,2]
[341727396,1731151850123,-2101.2121935,0.00028361,2]
[341727397,1731151850135,-151.0,0.00028361,7]
[341727398,1731151850147,-151.0,0.00028361,7]
[341727399,1731151850156,-807.3537562,0.00028361,2]
[341727400,1731151850165,-727.0195023,0.00028361,2]
[341727401,1731151850175,-646.6852485,0.00028361,2]
[341727402,1731151850185,-222.609416,0.00028361,7]
[341727403,1731151850195,-151.0,0.00028361,7]
[341727404,1731151850205,-274.738219,0.00028361,7]
[341727405,1731151850215,-274.738219,0.00028361,7]
[341727406,1731151850224,-1809.363913,0.00028361,7]
[341727407,1731151850234,-151.0,0.00028361,7]
[341727408,1731151850244,-1809.363913,0.00028361,7]
[341727409,1731151850254,-151.0,0.00028361,7]
[341727410,1731151850263,-186.761322,0.00028361,7]
[341727411,1731151850272,-186.761322,0.00028361,7]
[341727412,1731151850282,-219.217778,0.00028361,7]
[341727413,1731151850291,-219.217778,0.00028361,7]
[341727414,1731151850300,-151.0,0.00028361,7]
[341727415,1731151850310,-151.0,0.00028361,7]
[341727416,1731151850320,-151.0,0.00028361,7]
[341727417,1731151850330,-151.0,0.00028361,7]
[341727418,1731151850339,-151.0,0.00028361,7]
[341727419,1731151850349,-151.0,0.00028361,7]
[341727420,1731151850359,-151.0,0.00028361,7]
[341727421,1731151850368,-1746.43014,0.00028361,7]
[341727422,1731151850378,-1746.43014,0.00028361,7]
[341727423,1731151850387,-812.204246,0.00028361,7]
[341727424,1731151850399,-157.073083,0.00028361,7]
[341727425,1731151850409,-812.204246,0.00028361,7]
[341727426,1731151850420,-151.0,0.00028361,7]
[341727427,1731151850430,-156.591913,0.00028361,7]
[341727428,1731151850440,-151.0,0.00028361,7]
[341727429,1731151850451,-151.0,0.00028361,7]
[341727430,1731151850463,-151.0,0.00028361,7]
[341727431,1731151850474,-151.0,0.00028361,7]
[341727432,1731151850484,-151.0,0.00028361,7]
[341727433,1731151850495,-151.0,0.00028361,7]
[341727434,1731151850506,-150.0,0.00028363,2]
[341727435,1731151850515,-458.96942128,0.0002837,2]
[341727436,1731151850524,-458.96942128,0.0002837,2]
[341727437,1731151850533,-151.0,0.00028379,7]
[341727438,1731151850543,-1240.21211485,0.00028379,2]
[341727439,1731151850553,-1091.07,0.00028379,2]
[341727440,1731151850562,-1091.07,0.00028379,2]
[341727441,1731151850571,-1091.07,0.00028379,2]
[341727442,1731151850582,-1091.07,0.00028379,2]
[341727443,1731151850592,-1091.07,0.00028379,2]
[341727444,1731151850602,-1091.07,0.00028379,2]
[341727445,1731151850613,-1091.07,0.00028379,2]
[341727446,1731151850622,-1091.07,0.00028379,2]
[341727447,1731151850631,-1091.07,0.00028379,2]
[341727448,1731151850641,-1091.07,0.00028379,2]
[341727449,1731151850651,-1091.07,0.00028379,2]
[341727450,1731151850660,-1091.07,0.00028379,2]
[341727451,1731151850671,-1091.07,0.00028379,2]
[341727452,1731151850681,-1091.07,0.00028379,2]
[341727453,1731151850691,-1091.07,0.00028379,2]
[341727454,1731151850700,-1091.07,0.00028379,2]
[341727455,1731151850710,-1091.07,0.00028379,2]
[341727456,1731151850719,-1091.07,0.00028379,2]
[341727457,1731151850729,-1091.07,0.00028379,2]
[341727458,1731151850739,-1091.07,0.00028379,2]
[341727459,1731151850749,-1091.07,0.00028379,2]
[341727460,1731151850758,-1091.07,0.00028379,2]
[341727461,1731151850768,-1091.07,0.00028379,2]
[341727462,1731151850777,-1091.09892215,0.00028379,2]
[341727463,1731151850787,-596.313607,0.00028379,7]
[341727464,1731151850796,-2559.47730171,0.0002838,2]
[341727465,1731151850806,-769131.52494754,0.0002838,2]
[341727467,1731151978286,151.50384608,0.00018123,2]
[341727468,1731151990106,309.0,0.0002,2]
[341727470,1731152187948,177.68,0.00015342,2]
[341727471,1731152195480,8511.69794567,0.00027,60]
[341727474,1731152481270,183.92398563,0.00027,120]
[341727476,1731152697821,370.94,0.00025977,120]
[341727478,1731152911265,150.0,0.00018123,2]
[341727479,1731152912807,569.721,0.0002,2]
[341727480,1731152913460,169.88,0.00015342,2]
[341727481,1731152927460,161.0,0.0002,2]
[341727482,1731152952810,215.05413377,0.00018123,2]
[341727483,1731152953131,-155.724,0.00020185,2]
[341727484,1731152953152,-160.7115,0.00020185,2]
[341727485,1731152953172,-296.47,0.00020782,2]
[341727486,1731152953193,-450.0,0.00021,2]
[341727487,1731152953214,-169.88,0.00021745,2]
[341727488,1731152953235,-776.28528578,0.000229,2]
[341727489,1731152953257,-630.89815266,0.00022987,2]
[341727490,1731152953278,-500.0,0.00023,2]
[341727491,1731152953328,-776.28528576,0.000249,2]
[341727492,1731152953350,-550.0,0.00025,2]
[341727493,1731152953373,-1125.09,0.00025144,2]
[341727494,1731152953394,-1000.0,0.00025759,2]
[341727495,1731152953415,-152.01,0.000259,2]
[341727496,1731152953437,-170.8,0.0002591,2]
[341727501,1731152970262,-200.0,0.00025954,2]
[341727502,1731152970285,-250.0,0.00025977,2]
[341727503,1731152970310,-707.0,0.00026031,2]
[341727504,1731152970331,-1321.63,0.00026039,2]
[341727505,1731152970353,-922.83,0.00026082,2]
[341727506,1731152970376,-250.0,0.00026128,2]
[341727507,1731152970399,-164.47,0.00026171,2]
[341727508,1731152978237,1272.74,0.00024393,2]
[341727511,1731153003095,285.16074491,0.00024393,2]